fUSD/lending_fUSD_20240104
["ID","MTS","AMOUNT","RATE_DAILY","PERIOD"]
[310127062,1704376321917,-507.95233282,0.000359,4]
[310127063,1704376321927,-501.0,0.000359,25]
[310127064,1704376321937,-152.0,0.000359,2]
[310127065,1704376321946,-151.3449159,0.00035921,14]
[310127066,1704376321956,-1004.99886695,0.00035935,14]
[310127067,1704376321966,-2000.0,0.00035949,2]
[310127068,1704376321976,-2000.0,0.00035949,2]
[310127069,1704376321986,-164.39947047,0.00035958,14]
[310127070,1704376321996,-150.0,0.00035959,2]
[310127071,1704376322006,-152.0,0.00035987,5]
[310127072,1704376322016,-300.0,0.00035987,15]
[310127073,1704376322025,-92615.05868149,0.00035999,5]
[310127074,1704376322034,-100000.0,0.00036,6]
[310127075,1704376322044,-172747.65488804,0.00036,4]
[310127076,1704376322054,-10095.32524241,0.00036,2]
[310127077,1704376322064,-150.0,0.00036,2]
[310127078,1704376322074,-760.7544965,0.00036,4]
[310127079,1704376322083,-2000.0,0.00036,2]
[310127080,1704376322092,-2000.0,0.00036,4]
[310127081,1704376322101,-20000.0,0.00036,7]
[310127082,1704376322111,-300.0,0.00036,37]
[310127083,1704376322121,-500.0,0.00036,120]
[310127084,1704376322131,-1056.0,0.00036,2]
[310127085,1704376322141,-10000.0,0.00036,2]
[310127086,1704376322151,-1092.0,0.00036,15]
[310127087,1704376322160,-10000.0,0.00036,15]
[310127088,1704376322170,-13926.0,0.00036,15]
[310127089,1704376322180,-2937.0,0.00036,15]
[310127090,1704376322190,-10276.0,0.00036,15]
[310127091,1704376322200,-11460.0,0.00036,15]
[310127092,1704376322210,-1036.0394402,0.00036,2]
[310127093,1704376322219,-732.0,0.00036,15]
[310127094,1704376322229,-724.0,0.00036,15]
[310127095,1704376322239,-151.36920844,0.00036011,14]
[310127096,1704376322249,-151.5350356,0.00036017,14]
[310127097,1704376322259,-151.36920844,0.00036042,14]
[310127098,1704376322268,-420.61578195,0.0003605,14]
[310127099,1704376322278,-174.159972,0.0003607,2]
[310127100,1704376322289,-163.547368,0.0003607,2]
[310127101,1704376322298,-163.547368,0.0003607,2]
[310127102,1704376322308,-159.57499854,0.00036077,14]
[310127103,1704376322317,-1004.99886695,0.00036082,14]
[310127104,1704376322327,-1000.0,0.00036084,10]
[310127105,1704376322336,-1000.0,0.00036084,10]
[310127106,1704376322346,-1000.0,0.00036084,10]
[310127107,1704376322355,-1000.0,0.00036084,10]
[310127108,1704376322365,-1000.0,0.00036084,10]
[310127109,1704376322375,-151.0,0.00036088,4]
[310127110,1704376322384,-13136.78925363,0.00036089,2]
[310127111,1704376322394,-13136.78925358,0.00036089,2]
[310127112,1704376322404,-13136.78925358,0.00036089,2]
[310127113,1704376322414,-13136.78925358,0.00036089,2]
[310127114,1704376322424,-13136.78925358,0.00036089,2]
[310127115,1704376322433,-13136.78925358,0.00036089,2]
[310127116,1704376322443,-13136.78925358,0.00036089,2]
[310127117,1704376322453,-13136.78925358,0.00036089,2]
[310127118,1704376322462,-13136.78925358,0.00036089,2]
[310127119,1704376322472,-13136.78925358,0.00036089,2]
[310127120,1704376322481,-162.46684797,0.00036089,30]
[310127121,1704376322490,-150.0,0.0003609,120]
[310127122,1704376322500,-151.3449159,0.0003609,14]
[310127123,1704376322509,-2922.09,0.00036101,7]
[310127124,1704376322518,-2922.09,0.00036101,7]
[310127125,1704376322527,-151.36920844,0.00036105,14]
[310127126,1704376322537,-151.69064531,0.00036151,2]
[310127127,1704376322546,-1105.69,0.00036164,2]
[310127128,1704376322555,-500.0,0.00036164,2]
[310127129,1704376322564,-231.50533839,0.00036164,2]
[310127130,1704376322574,-550.1,0.00036164,2]
[310127131,1704376322584,-309.53482499,0.00036164,2]
[310127132,1704376322593,-295.13551921,0.00036164,2]
[310127133,1704376322603,-500.0,0.00036164,2]
[310127134,1704376322613,-557.02915096,0.00036164,2]
[310127135,1704376322622,-688.97,0.00036164,2]
[310127136,1704376322631,-755.75,0.00036164,2]
[310127137,1704376322641,-1506.91,0.00036164,2]
[310127138,1704376322650,-500.0,0.00036164,2]
[310127139,1704376322659,-872.68,0.00036164,2]
[310127140,1704376322671,-500.0,0.00036164,2]
[310127141,1704376322681,-1266.42,0.00036164,2]
[310127142,1704376322690,-500.0,0.00036164,2]
[310127143,1704376322699,-500.0,0.00036164,2]
[310127144,1704376322709,-1122.66,0.00036164,2]
[310127145,1704376322718,-500.0,0.00036164,2]
[310127146,1704376322728,-500.0,0.00036164,2]
[310127147,1704376322737,-683.22,0.00036164,2]
[310127148,1704376322747,-496.10226945,0.00036164,2]
[310127149,1704376322756,-218.15,0.00036164,2]
[310127150,1704376322766,-559.7,0.00036164,2]
[310127151,1704376322776,-500.0,0.00036164,2]
[310127152,1704376322790,-500.0,0.00036164,2]
[310127153,1704376322800,-500.0,0.00036164,2]
[310127154,1704376322810,-500.0,0.00036164,2]
[310127155,1704376322820,-500.0,0.00036164,2]
[310127156,1704376322831,-1749.13,0.00036164,2]
[310127157,1704376322841,-503.48,0.00036164,2]
[310127158,1704376322851,-500.0,0.00036164,2]
[310127159,1704376322861,-500.0,0.00036164,2]
[310127160,1704376322871,-500.0,0.00036164,2]
[310127161,1704376322880,-562.25,0.00036164,2]
[310127162,1704376322889,-500.0,0.00036164,2]
[310127163,1704376322899,-500.0,0.00036164,2]
[310127164,1704376322909,-500.0,0.00036164,2]
[310127165,1704376322919,-868.86,0.00036164,2]
[310127166,1704376322929,-500.0,0.00036164,2]
[310127167,1704376322940,-500.0,0.00036164,2]
[310127168,1704376322950,-500.0,0.00036164,2]
[310127169,1704376322960,-500.0,0.00036164,2]
[310127170,1704376322969,-500.0,0.00036164,2]
[310127171,1704376322979,-689.08,0.00036164,2]
[310127172,1704376322988,-1000.0,0.00036164,2]
[310127173,1704376322998,-528.23,0.00036164,2]
[310127174,1704376323008,-500.0,0.00036164,2]
[310127175,1704376323018,-500.0,0.00036164,2]
[310127176,1704376323028,-819.39,0.00036164,2]
[310127177,1704376323038,-267.20685462,0.00036164,2]
[310127178,1704376323048,-501.43,0.00036164,2]
[310127179,1704376323058,-202.40084411,0.00036164,2]
[310127180,1704376323068,-500.0,0.00036164,2]
[310127181,1704376323077,-659.39,0.00036164,2]
[310127182,1704376323087,-500.0,0.00036164,2]
[310127183,1704376323097,-500.0,0.00036164,2]
[310127184,1704376323107,-227.7749926,0.00036164,2]
[310127185,1704376323118,-500.0,0.00036164,2]
[310127186,1704376323128,-533.62992008,0.00036164,2]
[310127187,1704376323137,-500.0,0.00036164,2]
[310127188,1704376323147,-401.13489757,0.00036164,2]
[310127189,1704376323157,-2553.32,0.00036164,2]
[310127190,1704376323167,-649.9830563,0.00036164,2]
[310127191,1704376323178,-604.64,0.00036164,2]
[310127192,1704376323188,-500.0,0.00036164,2]
[310127193,1704376323197,-584.06,0.00036164,2]
[310127194,1704376323207,-681.98,0.00036164,2]
[310127195,1704376323218,-564.27,0.00036164,2]
[310127196,1704376323229,-500.0,0.00036164,2]
[310127197,1704376323240,-500.0,0.00036164,2]
[310127198,1704376323249,-500.0,0.00036164,2]
[310127199,1704376323259,-500.0,0.00036164,2]
[310127200,1704376323268,-500.0,0.00036164,2]
[310127201,1704376323278,-817.16,0.00036164,2]
[310127202,1704376323288,-500.0,0.00036164,2]
[310127203,1704376323298,-3601.75,0.00036164,2]
[310127204,1704376323307,-500.0,0.00036164,2]
[310127205,1704376323317,-500.0,0.00036164,2]
[310127206,1704376323326,-601.96043128,0.00036164,2]
[310127207,1704376323336,-500.0,0.00036164,2]
[310127208,1704376323346,-500.0,0.00036164,2]
[310127209,1704376323355,-500.0,0.00036164,2]
[310127210,1704376323366,-500.0,0.00036164,2]
[310127211,1704376323375,-717.82,0.00036164,2]
[310127212,1704376323385,-669.95,0.00036164,2]
[310127213,1704376323395,-500.0,0.00036164,2]
[310127214,1704376323404,-500.0,0.00036164,2]
[310127215,1704376323414,-500.0,0.00036164,2]
[310127216,1704376323423,-591.79,0.00036164,2]
[310127217,1704376323433,-432.9,0.00036164,2]
[310127218,1704376323443,-500.0,0.00036164,2]
[310127219,1704376323452,-406.48,0.00036164,2]
[310127220,1704376323463,-500.0,0.00036164,2]
[310127221,1704376323474,-500.0,0.00036164,2]
[310127222,1704376323484,-500.0,0.00036164,2]
[310127223,1704376323494,-500.0,0.00036164,2]
[310127224,1704376323504,-1654.56,0.00036164,2]
[310127225,1704376323513,-516.6,0.00036164,2]
[310127226,1704376323523,-500.0,0.00036164,2]
[310127227,1704376323532,-500.0,0.00036164,2]
[310127228,1704376323541,-519.53,0.00036164,2]
[310127229,1704376323551,-500.0,0.00036164,2]
[310127230,1704376323561,-1518.1,0.00036164,2]
[310127231,1704376323570,-844.17,0.00036164,2]
[310127232,1704376323580,-500.0,0.00036164,2]
[310127233,1704376323589,-500.0,0.00036164,2]
[310127234,1704376323599,-500.0,0.00036164,2]
[310127235,1704376323608,-1154.94,0.00036164,2]
[310127236,1704376323619,-500.0,0.00036164,2]
[310127237,1704376323629,-500.0,0.00036164,2]
[310127238,1704376323641,-500.0,0.00036164,2]
[310127239,1704376323650,-500.0,0.00036164,2]
[310127240,1704376323660,-685.93,0.00036164,2]
[310127241,1704376323670,-327.90355513,0.00036164,2]
[310127242,1704376323679,-280.68475225,0.00036164,2]
[310127243,1704376323688,-500.0,0.00036164,2]
[310127244,1704376323697,-500.0,0.00036164,2]
[310127245,1704376323865,-732.57,0.00036164,2]
[310127246,1704376323891,-500.0,0.00036164,2]
[310127247,1704376323901,-585.79114231,0.00036164,2]
[310127248,1704376323910,-790.13,0.00036164,2]
[310127249,1704376323919,-828.91,0.00036164,2]
[310127250,1704376323929,-500.0,0.00036164,2]
[310127251,1704376323938,-500.0,0.00036164,2]
[310127252,1704376323948,-711.96,0.00036164,2]
[310127253,1704376323957,-536.01,0.00036164,2]
[310127254,1704376323966,-608.12,0.00036164,2]
[310127255,1704376323975,-4986.82,0.00036164,2]
[310127256,1704376323985,-866.33,0.00036164,2]
[310127257,1704376323994,-500.0,0.00036164,2]
[310127258,1704376324004,-2106.08,0.00036164,2]
[310127259,1704376324013,-500.0,0.00036164,2]
[310127260,1704376324022,-500.0,0.00036164,2]
[310127261,1704376324032,-2265.71,0.00036164,2]
[310127262,1704376324041,-500.0,0.00036164,2]
[310127263,1704376324051,-767.02,0.00036164,2]
[310127264,1704376324061,-500.0,0.00036164,2]
[310127265,1704376324070,-1141.21,0.00036164,2]
[310127266,1704376324079,-500.0,0.00036164,2]
[310127267,1704376324089,-500.0,0.00036164,2]
[310127268,1704376324099,-855.1,0.00036164,2]
[310127269,1704376324109,-616.17,0.00036164,2]
[310127270,1704376324120,-500.0,0.00036164,2]
[310127271,1704376324129,-500.0,0.00036164,2]
[310127272,1704376324138,-500.0,0.00036164,2]
[310127273,1704376324147,-500.0,0.00036164,2]
[310127274,1704376324156,-1115.17,0.00036164,2]
[310127275,1704376324166,-500.0,0.00036164,2]
[310127276,1704376324176,-3455.17,0.00036164,2]
[310127277,1704376324186,-1355.05,0.00036164,2]
[310127278,1704376324195,-3050.39,0.00036164,2]
[310127279,1704376324204,-926.09,0.00036164,2]
[310127280,1704376324214,-500.0,0.00036164,2]
[310127281,1704376324224,-265.19754809,0.00036164,2]
[310127282,1704376324233,-3332.3,0.00036164,2]
[310127283,1704376324243,-500.0,0.00036164,2]
[310127284,1704376324253,-622.83,0.00036164,2]
[310127285,1704376324263,-500.0,0.00036164,2]
[310127286,1704376324272,-2331.02,0.00036164,2]
[310127287,1704376324282,-500.0,0.00036164,2]
[310127288,1704376324291,-660.0,0.00036164,2]
[310127289,1704376324301,-500.0,0.00036164,2]
[310127290,1704376324310,-274.87588887,0.00036164,2]
[310127291,1704376324320,-649.57914789,0.00036164,2]
[310127292,1704376324329,-661.88,0.00036164,2]
[310127293,1704376324339,-510.65494625,0.00036164,2]
[310127294,1704376324348,-500.0,0.00036164,2]
[310127295,1704376324358,-2608.4,0.00036164,2]
[310127296,1704376324369,-420.58239285,0.00036164,2]
[310127297,1704376324379,-1494.03,0.00036164,2]
[310127298,1704376324389,-1463.43,0.00036164,2]
[310127299,1704376324399,-500.0,0.00036164,2]
[310127300,1704376324408,-1043.9,0.00036164,2]
[310127301,1704376324417,-598.95,0.00036164,2]
[310127302,1704376324427,-1024.71,0.00036164,2]
[310127303,1704376324437,-500.0,0.00036164,2]
[310127304,1704376324446,-500.0,0.00036164,2]
[310127305,1704376324456,-609.43,0.00036164,2]
[310127306,1704376324466,-1321.13,0.00036164,2]
[310127307,1704376324478,-1809.81,0.00036164,2]
[310127308,1704376324487,-741.24,0.00036164,2]
[310127309,1704376324497,-955.44,0.00036164,2]
[310127310,1704376324507,-1179.95,0.00036164,2]
[310127311,1704376324516,-568.4,0.00036164,2]
[310127312,1704376324525,-824.39,0.00036164,2]
[310127313,1704376324535,-896.64,0.00036164,2]
[310127314,1704376324544,-500.0,0.00036164,2]
[310127315,1704376324554,-745.04,0.00036164,2]
[310127316,1704376324564,-673.43,0.00036164,2]
[310127317,1704376324574,-780.4,0.00036164,2]
[310127318,1704376324584,-537.65,0.00036164,2]
[310127319,1704376324593,-1236.0,0.00036164,2]
[310127320,1704376324603,-642.93,0.00036164,2]
[310127321,1704376324612,-837.04,0.00036164,2]
[310127322,1704376324622,-1050.16,0.00036164,2]
[310127323,1704376324632,-277.08394505,0.00036164,2]
[310127324,1704376324641,-969.09,0.00036164,2]
[310127325,1704376324651,-611.46030337,0.00036164,2]
[310127326,1704376324660,-626.59,0.00036164,2]
[310127327,1704376324670,-532.7,0.00036164,2]
[310127328,1704376324679,-500.0,0.00036164,2]
[310127329,1704376324688,-517.15,0.00036164,2]
[310127330,1704376324698,-976.99,0.00036164,2]
[310127331,1704376324708,-833.15,0.00036164,2]
[310127332,1704376324718,-167.1842664,0.00036164,2]
[310127333,1704376324727,-500.0,0.00036164,2]
[310127334,1704376324736,-517.44,0.00036164,2]
[310127335,1704376324746,-588.23,0.00036164,2]
[310127336,1704376324756,-2663.85,0.00036164,2]
[310127337,1704376324765,-524.48,0.00036164,2]
[310127338,1704376324774,-762.82,0.00036164,2]
[310127339,1704376324784,-3366.34,0.00036164,2]
[310127340,1704376324793,-516.2,0.00036164,2]
[310127341,1704376324803,-7010.51,0.00036164,2]
[310127342,1704376324812,-500.0,0.00036164,2]
[310127343,1704376324821,-500.0,0.00036164,2]
[310127344,1704376324830,-500.0,0.00036164,2]
[310127345,1704376324840,-864.34,0.00036164,2]
[310127346,1704376324850,-1004.99886695,0.00036169,14]
[310127347,1704376324859,-1004.99886695,0.00036185,14]
[310127348,1704376324870,-420.61578195,0.00036192,14]
[310127349,1704376324879,-157.40104,0.00036198,2]
[310127350,1704376324888,-8560.72,0.000362,7]
[310127351,1704376324898,-36636.41,0.000362,7]
[310127352,1704376324907,-62201.05,0.000362,7]
[310127353,1704376324916,-1094.75421333,0.000362,2]
[310127354,1704376324926,-158.38677458,0.00036203,14]
[310127355,1704376324936,-153.84,0.00036224,2]
[310127356,1704376324945,-12380.76683666,0.00036237,2]
[310127357,1704376324955,-174.00751121,0.00036244,14]
[310127358,1704376324965,-420.61578195,0.00036248,14]
[310127359,1704376324974,-320.2,0.00036254,2]
[310127360,1704376324984,-151.5350356,0.00036254,14]
[310127361,1704376324993,-174.00751121,0.00036269,14]
[310127362,1704376325002,-500.0,0.0003627,10]
[310127363,1704376325012,-150.0,0.00036279,2]
[310127364,1704376325021,-151.36920844,0.0003628,14]
[310127365,1704376325031,-154.23478519,0.00036286,14]
[310127366,1704376325041,-151.3449159,0.00036287,14]
[310127367,1704376325051,-156.82,0.00036292,2]
[310127368,1704376325061,-151.36920844,0.00036293,14]
[310127369,1704376325072,-174.00751121,0.00036294,14]
[310127370,1704376325082,-157.40104,0.00036298,2]
[310127371,1704376325093,-151.3449159,0.00036327,14]
[310127372,1704376325103,-206.0,0.0003633,2]
[310127373,1704376325114,-500.0,0.00036356,7]
[310127374,1704376325125,-151.3449159,0.00036366,14]
[310127375,1704376325135,-2922.09,0.00036374,7]
[310127376,1704376325146,-2922.09,0.00036374,7]
[310127377,1704376325156,-376.4,0.00036394,2]
[310127378,1704376325165,-150.0,0.00036394,2]
[310127379,1704376325175,-150.0,0.00036394,2]
[310127380,1704376325186,-150.0,0.00036394,2]
[310127381,1704376325196,-150.0,0.00036394,2]
[310127382,1704376325207,-150.0,0.00036394,2]
[310127383,1704376325218,-305.16,0.00036394,2]
[310127384,1704376325228,-293.32,0.00036394,2]
[310127385,1704376325239,-293.32,0.00036394,2]
[310127386,1704376325249,-293.32,0.00036394,2]
[310127387,1704376325259,-219.59,0.00036394,2]
[310127388,1704376325270,-1031.59700814,0.000364,2]
[310127389,1704376325279,-17397.0,0.000364,3]
[310127390,1704376325289,-501.0,0.000364,25]
[310127391,1704376325299,-1004.99886695,0.00036414,14]
[310127392,1704376325309,-209.0,0.0003642,2]
[310127393,1704376325319,-207.0,0.0003642,2]
[310127394,1704376325330,-151.3449159,0.00036422,14]
[310127395,1704376325340,-1105.69,0.00036438,2]
[310127396,1704376325350,-500.0,0.00036438,2]
[310127397,1704376325362,-550.1,0.00036438,2]
[310127398,1704376325372,-500.0,0.00036438,2]
[310127399,1704376325382,-688.97,0.00036438,2]
[310127400,1704376325392,-755.75,0.00036438,2]
[310127401,1704376325401,-1506.91,0.00036438,2]
[310127402,1704376325412,-500.0,0.00036438,2]
[310127403,1704376325422,-872.68,0.00036438,2]
[310127404,1704376325432,-500.0,0.00036438,2]
[310127405,1704376325441,-1266.42,0.00036438,2]
[310127406,1704376325451,-500.0,0.00036438,2]
[310127407,1704376325461,-500.0,0.00036438,2]
[310127408,1704376325471,-1122.66,0.00036438,2]
[310127409,1704376325481,-500.0,0.00036438,2]
[310127410,1704376325492,-500.0,0.00036438,2]
[310127411,1704376325502,-683.22,0.00036438,2]
[310127412,1704376325512,-559.7,0.00036438,2]
[310127413,1704376325522,-500.0,0.00036438,2]
[310127414,1704376325532,-500.0,0.00036438,2]
[310127415,1704376325541,-500.0,0.00036438,2]
[310127416,1704376325551,-473.70898459,0.00036438,2]
[310127417,1704376325561,-349.04851795,0.00036438,2]
[310127418,1704376325571,-1749.13,0.00036438,2]
[310127419,1704376325580,-503.48,0.00036438,2]
[310127420,1704376325589,-499.31696083,0.00036438,2]
[310127421,1704376325599,-500.0,0.00036438,2]
[310127422,1704376325609,-500.0,0.00036438,2]
[310127423,1704376325619,-562.25,0.00036438,2]
[310127424,1704376325628,-500.0,0.00036438,2]
[310127425,1704376325638,-500.0,0.00036438,2]
[310127426,1704376325648,-500.0,0.00036438,2]
[310127427,1704376325658,-868.86,0.00036438,2]
[310127428,1704376325668,-500.0,0.00036438,2]
[310127429,1704376325678,-500.0,0.00036438,2]
[310127430,1704376325688,-500.0,0.00036438,2]
[310127431,1704376325697,-500.0,0.00036438,2]
[310127432,1704376325707,-500.0,0.00036438,2]
[310127433,1704376325717,-1047.32663217,0.00036438,2]
[310127434,1704376325730,-528.23,0.00036438,2]
[310127435,1704376325740,-689.08,0.00036438,2]
[310127436,1704376325749,-500.0,0.00036438,2]
[310127437,1704376325758,-500.0,0.00036438,2]
[310127438,1704376325769,-819.39,0.00036438,2]
[310127439,1704376325780,-501.43,0.00036438,2]
[310127440,1704376325789,-500.0,0.00036438,2]
[310127441,1704376325800,-659.39,0.00036438,2]
[310127442,1704376325811,-500.0,0.00036438,2]
[310127443,1704376325822,-500.0,0.00036438,2]
[310127444,1704376325832,-500.0,0.00036438,2]
[310127445,1704376325842,-500.0,0.00036438,2]
[310127446,1704376325853,-2553.32,0.00036438,2]
[310127447,1704376325863,-604.64,0.00036438,2]
[310127448,1704376325873,-644.64102243,0.00036438,2]
[310127449,1704376325883,-584.06,0.00036438,2]
[310127450,1704376325893,-681.98,0.00036438,2]
[310127451,1704376325903,-564.27,0.00036438,2]
[310127452,1704376325913,-500.0,0.00036438,2]
[310127453,1704376325922,-500.0,0.00036438,2]
[310127454,1704376325931,-547.85953242,0.00036438,2]
[310127455,1704376325942,-500.0,0.00036438,2]
[310127456,1704376325951,-500.0,0.00036438,2]
[310127457,1704376325961,-817.16,0.00036438,2]
[310127458,1704376325970,-500.0,0.00036438,2]
[310127459,1704376325980,-3601.75,0.00036438,2]
[310127460,1704376325990,-500.0,0.00036438,2]
[310127461,1704376326000,-500.0,0.00036438,2]
[310127462,1704376326010,-500.0,0.00036438,2]
[310127463,1704376326020,-500.0,0.00036438,2]
[310127464,1704376326029,-500.0,0.00036438,2]
[310127465,1704376326040,-500.0,0.00036438,2]
[310127466,1704376326049,-717.82,0.00036438,2]
[310127467,1704376326059,-669.95,0.00036438,2]
[310127468,1704376326069,-500.0,0.00036438,2]
[310127469,1704376326078,-500.0,0.00036438,2]
[310127470,1704376326089,-500.0,0.00036438,2]
[310127471,1704376326098,-591.79,0.00036438,2]
[310127472,1704376326108,-500.0,0.00036438,2]
[310127473,1704376326118,-406.48,0.00036438,2]
[310127474,1704376326128,-500.0,0.00036438,2]
[310127475,1704376326138,-479.04814564,0.00036438,2]
[310127476,1704376326147,-500.0,0.00036438,2]
[310127477,1704376326156,-500.0,0.00036438,2]
[310127478,1704376326166,-1654.56,0.00036438,2]
[310127479,1704376326177,-516.6,0.00036438,2]
[310127480,1704376326186,-500.0,0.00036438,2]
[310127481,1704376326196,-500.0,0.00036438,2]
[310127482,1704376326205,-519.53,0.00036438,2]
[310127483,1704376326215,-500.0,0.00036438,2]
[310127484,1704376326225,-1518.1,0.00036438,2]
[310127485,1704376326234,-844.17,0.00036438,2]
[310127486,1704376326244,-500.0,0.00036438,2]
[310127487,1704376326254,-500.0,0.00036438,2]
[310127488,1704376326263,-500.0,0.00036438,2]
[310127489,1704376326273,-1154.94,0.00036438,2]
[310127490,1704376326284,-500.0,0.00036438,2]
[310127491,1704376326294,-500.0,0.00036438,2]
[310127492,1704376326304,-500.0,0.00036438,2]
[310127493,1704376326313,-500.0,0.00036438,2]
[310127494,1704376326323,-685.93,0.00036438,2]
[310127495,1704376326333,-500.0,0.00036438,2]
[310127496,1704376326343,-500.0,0.00036438,2]
[310127497,1704376326355,-732.57,0.00036438,2]
[310127498,1704376326365,-500.0,0.00036438,2]
[310127499,1704376326374,-790.13,0.00036438,2]
[310127500,1704376326384,-828.91,0.00036438,2]
[310127501,1704376326394,-500.0,0.00036438,2]
[310127502,1704376326404,-500.0,0.00036438,2]
[310127503,1704376326413,-711.96,0.00036438,2]
[310127504,1704376326423,-536.01,0.00036438,2]
[310127505,1704376326433,-608.12,0.00036438,2]
[310127506,1704376326442,-4986.82,0.00036438,2]
[310127507,1704376326451,-866.33,0.00036438,2]
[310127508,1704376326461,-322.61900088,0.00036438,2]
[310127509,1704376326471,-2106.08,0.00036438,2]
[310127510,1704376326480,-500.0,0.00036438,2]
[310127511,1704376326490,-204.46066236,0.00036438,2]
[310127512,1704376326500,-2265.71,0.00036438,2]
[310127513,1704376326509,-500.0,0.00036438,2]
[310127514,1704376326518,-767.02,0.00036438,2]
[310127515,1704376326528,-500.0,0.00036438,2]
[310127516,1704376326537,-1141.21,0.00036438,2]
[310127517,1704376326547,-500.0,0.00036438,2]
[310127518,1704376326556,-500.0,0.00036438,2]
[310127519,1704376326567,-855.1,0.00036438,2]
[310127520,1704376326576,-616.17,0.00036438,2]
[310127521,1704376326586,-500.0,0.00036438,2]
[310127522,1704376326595,-500.0,0.00036438,2]
[310127523,1704376326604,-500.0,0.00036438,2]
[310127524,1704376326614,-500.0,0.00036438,2]
[310127525,1704376326626,-1115.17,0.00036438,2]
[310127526,1704376326635,-500.0,0.00036438,2]
[310127527,1704376326646,-3455.17,0.00036438,2]
[310127528,1704376326655,-1355.05,0.00036438,2]
[310127529,1704376326665,-3050.39,0.00036438,2]
[310127530,1704376326674,-926.09,0.00036438,2]
[310127531,1704376326684,-500.0,0.00036438,2]
[310127532,1704376326693,-3332.3,0.00036438,2]
[310127533,1704376326703,-500.0,0.00036438,2]
[310127534,1704376326713,-622.83,0.00036438,2]
[310127535,1704376326723,-500.0,0.00036438,2]
[310127536,1704376326732,-2331.02,0.00036438,2]
[310127537,1704376326742,-500.0,0.00036438,2]
[310127538,1704376326751,-660.0,0.00036438,2]
[310127539,1704376326761,-526.82793236,0.00036438,2]
[310127540,1704376326770,-661.88,0.00036438,2]
[310127541,1704376326780,-500.0,0.00036438,2]
[310127542,1704376326790,-2608.4,0.00036438,2]
[310127543,1704376326800,-1494.03,0.00036438,2]
[310127544,1704376326809,-1463.43,0.00036438,2]
[310127545,1704376326818,-500.0,0.00036438,2]
[310127546,1704376326828,-1043.9,0.00036438,2]
[310127547,1704376326838,-598.95,0.00036438,2]
[310127548,1704376326847,-1024.71,0.00036438,2]
[310127549,1704376326856,-500.0,0.00036438,2]
[310127550,1704376326866,-500.0,0.00036438,2]
[310127551,1704376326876,-609.43,0.00036438,2]
[310127552,1704376326886,-1321.13,0.00036438,2]
[310127553,1704376326895,-1809.81,0.00036438,2]
[310127554,1704376326905,-741.24,0.00036438,2]
[310127555,1704376326915,-955.44,0.00036438,2]
[310127556,1704376326925,-1179.95,0.00036438,2]
[310127557,1704376326935,-568.4,0.00036438,2]
[310127558,1704376327115,-824.39,0.00036438,2]
[310127559,1704376327126,-896.64,0.00036438,2]
[310127560,1704376327136,-573.43708873,0.00036438,2]
[310127561,1704376327146,-745.04,0.00036438,2]